[Event "Wuerttemberg Rapid Teams 2024"]
[Site "B?blingen, Germany"]
[Date "2024.04.13"]
[Round "4.23"]
[White "Aksenov, Pavel"]
[Black "Albrecht, Neil"]
[Result "0-1"]
[ECO "D10"]
[WhiteElo "2045"]
[BlackElo "1950"]
[Annotator "RC"]
[PlyCount "98"]
[EventDate "2024.04.13"]
[EventType "team-tourn"]
[SourceTitle "playchess.com"]
[Source "ChessBase"]
[SourceQuality "1"]
[TimeControl "900+5"]

1. d4 {[%emt 0:00:02]} d5 {[%emt 0:00:01]} 2. c4 {[%emt 0:00:01]} c6 {[%emt 0:00:01]} 3. e3 {[%emt 0:00:01]} Nf6 {[%emt 0:00:01]} 4. Nc3 {[%emt 0:00:04]} Bf5 {[%emt 0:00:04]} 5. a3 {[%emt 0:00:04]} e6 {[%emt 0:00:03]} 6. cxd5 {[%emt 0:00:21]} exd5 {[%emt 0:00:06]} 7. Bd3 {[%emt 0:00:09]} Bxd3 {[%emt 0:00:04]} 8. Qxd3 {[%emt 0:00:01]} Bd6 {[%emt 0:00:20]} 9. Nf3 {[%emt 0:00:23]} O-O {[%emt 0:00:04]} 10. Ne5 {[%emt 0:00:41]} Re8 {[%emt 0:00:18]} 11. f4 {[%emt 0:00:01]} Nfd7 {[%emt 0:00:22]} 12. O-O {[%emt 0:00:07]} f6 {[%emt 0:00:17]} 13. Nf3 {[%emt 0:00:09]} Nb6 {[%emt 0:00:27]} 14. b3 {[%emt 0:00:15]} a5 {[%emt 0:00:10]} 15. a4 {[%emt 0:00:09]} Na6 {[%emt 0:00:02]} 16. Bd2 {[%emt 0:00:17]} Nb4 {[%emt 0:00:05]} 17. Qf5 {[%emt 0:00:46]} Qd7 {[%emt 0:01:01]} 18. Qb1 {[%emt 0:00:16]} Re7 {[%emt 0:00:31]} 19. Nd1 {[%emt 0:00:10]} Rae8 {[%emt 0:00:12]} 20. Bxb4 {[%emt 0:00:11]} Bxb4 {[%emt 0:00:02]} 21. Qd3 {[%emt 0:00:00]} Nc8 {[%emt 0:00:14]} 22. Nh4 {[%emt 0:00:51]} Nd6 {[%emt 0:00:10]} 23. Rf3 {[%emt 0:01:12]} Ne4 {[%emt 0:00:28]} 24. f5 {[%emt 0:00:45]} Be1 {[%emt 0:00:13]} 25. g3 {[%emt 0:00:39]} Bb4 {[%emt 0:00:24]} 26. Ra2 {[%emt 0:00:00]} Qd8 {[%emt 0:00:45]} 27. Ng2 {[%emt 0:00:24]} Qd7 {[%emt 0:00:57]} 28. g4 {[%emt 0:01:33]} Ng5 {[%emt 0:01:08]} 29. Rf1 {[%emt 0:00:18]} Nh3+ {[%emt 0:00:30]} 30. Kh1 {[%emt 0:00:03]} Re4 {[%emt 0:00:05]} 31. Nf4 {[%emt 0:00:50]} Nxf4 {[%emt 0:00:10]} 32. exf4 {[%emt 0:00:32]} Qd6 {[%emt 0:00:37]} 33. Raf2 {[%emt 0:00:03]} c5 {[%emt 0:00:38]} 34. dxc5 {[%emt 0:00:12]} Bxc5 {[%emt 0:00:02]} 35. Rf3 {[%emt 0:00:00]} Rd4 {[%emt 0:01:34]} 36. Qb5 {[%emt 0:00:16]} Rd8 {[%emt 0:02:05]} 37. Qxa5 {[%emt 0:01:39]} Rb4 {[%emt 0:00:09]} 38. Ne3 {[%emt 0:01:07]} Bb6 {[%emt 0:00:08]} 39. Qxd5+ {[%emt 0:00:57]} Qxd5 {[%emt 0:00:01]} 40. Nxd5 {[%emt 0:00:01]} Rxd5 {[%emt 0:00:01]} 41. Re1 {[%emt 0:01:40]} Kf7 {[%emt 0:00:34]} 42. Kg2 {[%emt 0:01:06]} h5 {[%emt 0:00:34]} 43. h3 {[%emt 0:00:04]} hxg4 {[%emt 0:00:05]} 44. hxg4 {[%emt 0:00:01]} Rd2+ {[%emt 0:00:20]} 45. Kg3 {[%emt 0:00:01]} Rb2 {[%emt 0:00:18]} 46. Rd1 {[%emt 0:00:04]} R4xb3 {[%emt 0:01:05]} 47. Rd7+ {[%emt 0:00:01]} Kf8 {[%emt 0:00:25]} 48. Rxb7 {[%emt 0:00:02]} Bf2+ {[%emt 0:00:06]} 49. Kg2 {[%emt 0:00:09]} Rxb7 {[%emt 0:00:05]} 0-1

[Event "Wuerttemberg Rapid Teams 2024"]
[Site "B?blingen, Germany"]
[Date "2024.04.13"]
[Round "4.25"]
[White "Kulm, Justin"]
[Black "Kabisch, Thilo"]
[Result "0-1"]
[ECO "A30"]
[WhiteElo "1963"]
[BlackElo "2228"]
[Annotator "RC"]
[PlyCount "78"]
[EventDate "2024.04.13"]
[EventType "team-tourn"]
[SourceTitle "playchess.com"]
[Source "ChessBase"]
[SourceQuality "1"]
[TimeControl "900+5"]

1. Nf3 {[%emt 0:00:03]} c5 {[%emt 0:00:13]} 2. g3 {[%emt 0:00:05]} Nf6 {[%emt 0:00:03]} 3. Bg2 {[%emt 0:00:01]} e6 {[%emt 0:00:03]} 4. O-O {[%emt 0:00:03]} Be7 {[%emt 0:00:01]} 5. d4 {[%emt 0:00:37]} cxd4 {[%emt 0:00:05]} 6. Nxd4 {[%emt 0:00:02]} a6 {[%emt 0:00:02]} 7. c4 {[%emt 0:00:09]} O-O {[%emt 0:00:04]} 8. Nc3 {[%emt 0:00:15]} Qc7 {[%emt 0:00:07]} 9. b3 {[%emt 0:00:37]} d5 {[%emt 0:00:10]} 10. Qd3 {[%emt 0:01:00]} e5 {[%emt 0:00:28]} 11. Nc2 {[%emt 0:01:14]} dxc4 {[%emt 0:00:11]} 12. bxc4 {[%emt 0:00:25]} Be6 {[%emt 0:00:23]} 13. Nd5 {[%emt 0:00:12]} Bxd5 {[%emt 0:00:34]} 14. cxd5 {[%emt 0:00:06]} Rd8 {[%emt 0:00:08]} 15. e4 {[%emt 0:00:29]} Nbd7 {[%emt 0:00:08]} 16. Be3 {[%emt 0:00:58]} Rac8 {[%emt 0:00:39]} 17. Rfc1 {[%emt 0:00:39]} Nc5 {[%emt 0:00:07]} 18. Bxc5 {[%emt 0:00:09]} Qxc5 {[%emt 0:00:05]} 19. Qd1 {[%emt 0:02:01]} b5 {[%emt 0:00:29]} 20. Ne3 {[%emt 0:00:17]} Qb6 {[%emt 0:00:17]} 21. a4 {[%emt 0:01:19]} Bc5 {[%emt 0:00:14]} 22. Rc3 {[%emt 0:01:56]} Bd4 {[%emt 0:00:45]} 23. Rxc8 {[%emt 0:00:01]} Rxc8 {[%emt 0:00:02]} 24. Rc1 {[%emt 0:00:14]} Rxc1 {[%emt 0:00:21]} 25. Qxc1 {[%emt 0:00:01]} g6 {[%emt 0:00:02]} 26. axb5 {[%emt 0:01:56]} axb5 {[%emt 0:00:10]} 27. Kf1 {[%emt 0:02:02]} b4 {[%emt 0:01:10]} 28. Ke1 {[%emt 0:00:20]} b3 {[%emt 0:00:17]} 29. Ke2 {[%emt 0:00:11]} b2 {[%emt 0:00:09]} 30. Qb1 {[%emt 0:00:01]} Qb5+ {[%emt 0:00:07]} 31. Kf3 {[%emt 0:00:08]} h5 {[%emt 0:00:18]} 32. Bf1 {[%emt 0:00:06]} Qb3 {[%emt 0:00:24]} 33. h3 {[%emt 0:00:03]} Nh7 {[%emt 0:01:20]} 34. h4 {[%emt 0:00:07]} Nf6 {[%emt 0:00:03]} 35. Bd3 {[%emt 0:00:01]} Bxe3 {[%emt 0:00:17]} 36. Kxe3 {[%emt 0:00:10]} Ng4+ {[%emt 0:00:08]} 37. Ke2 {[%emt 0:00:06]} Qb6 {[%emt 0:00:03]} 38. Qc2 {[%emt 0:00:05]} Qxf2+ {[%emt 0:00:06]} 39. Kd1 {[%emt 0:00:01]} Ne3# {[%emt 0:00:04]} 0-1

[Event "Wuerttemberg Rapid Teams 2024"]
[Site "B?blingen, Germany"]
[Date "2024.04.13"]
[Round "4.26"]
[White "Trachtmann, Mark"]
[Black "Bueble, Joschua"]
[Result "1-0"]
[ECO "E05"]
[WhiteElo "2203"]
[BlackElo "1972"]
[Annotator "RC"]
[PlyCount "87"]
[EventDate "2024.04.13"]
[EventType "team-tourn"]
[SourceTitle "playchess.com"]
[Source "ChessBase"]
[SourceQuality "1"]
[TimeControl "900+5"]

1. d4 {[%emt 0:00:02]} Nf6 {[%emt 0:00:02]} 2. c4 {[%emt 0:00:02]} e6 {[%emt 0:00:02]} 3. Nf3 {[%emt 0:00:03]} d5 {[%emt 0:00:02]} 4. g3 {[%emt 0:00:04]} Be7 {[%emt 0:00:02]} 5. Bg2 {[%emt 0:00:05]} O-O {[%emt 0:00:04]} 6. O-O {[%emt 0:00:03]} dxc4 {[%emt 0:00:01]} 7. Qc2 {[%emt 0:00:05]} a6 {[%emt 0:00:01]} 8. a4 {[%emt 0:00:06]} Bd7 {[%emt 0:00:02]} 9. Qxc4 {[%emt 0:00:40]} Bc6 {[%emt 0:00:25]} 10. Bg5 {[%emt 0:00:06]} Bd5 {[%emt 0:02:36]} 11. Qd3 {[%emt 0:00:22]} Nbd7 {[%emt 0:00:57]} 12. Nc3 {[%emt 0:00:13]} b6 {[%emt 0:00:23]} 13. Nxd5 {[%emt 0:02:13]} Nxd5 {[%emt 0:00:06]} 14. Bxe7 {[%emt 0:00:27]} Qxe7 {[%emt 0:00:02]} 15. e4 {[%emt 0:00:31]} Nb4 {[%emt 0:00:14]} 16. Qb3 {[%emt 0:00:05]} a5 {[%emt 0:00:38]} 17. Rfd1 {[%emt 0:00:09]} Nf6 {[%emt 0:00:54]} 18. Ne5 {[%emt 0:00:04]} Nd7 {[%emt 0:00:21]} 19. Nc4 {[%emt 0:00:27]} Rac8 {[%emt 0:00:36]} 20. Rac1 {[%emt 0:00:14]} Rfd8 {[%emt 0:00:24]} 21. Ne3 {[%emt 0:01:20]} g6 {[%emt 0:00:49]} 22. Nc4 {[%emt 0:03:42]} e5 {[%emt 0:01:28]} 23. d5 {[%emt 0:00:19]} Nc5 {[%emt 0:00:13]} 24. Qa3 {[%emt 0:00:42]} Qe8 {[%emt 0:00:18]} 25. b3 {[%emt 0:00:21]} Nb7 {[%emt 0:00:29]} 26. Qb2 {[%emt 0:00:11]} f6 {[%emt 0:00:27]} 27. Bh3 {[%emt 0:00:01]} Rb8 {[%emt 0:00:12]} 28. Be6+ {[%emt 0:00:05]} Kg7 {[%emt 0:00:02]} 29. Nxe5 {[%emt 0:00:28]} Nc5 {[%emt 0:00:33]} 30. Rxc5 {[%emt 0:00:20]} bxc5 {[%emt 0:00:18]} 31. Ng4 {[%emt 0:00:21]} Qe7 {[%emt 0:00:26]} 32. e5 {[%emt 0:00:13]} f5 {[%emt 0:00:10]} 33. Ne3 {[%emt 0:00:23]} Rb6 {[%emt 0:00:24]} 34. Bxf5 {[%emt 0:00:03]} Kf8 {[%emt 0:00:41]} 35. Be4 {[%emt 0:00:12]} c6 {[%emt 0:00:34]} 36. d6 {[%emt 0:00:10]} Qe6 {[%emt 0:00:04]} 37. Nc4 {[%emt 0:00:17]} Rbb8 {[%emt 0:00:32]} 38. Qd2 {[%emt 0:00:05]} Nd5 {[%emt 0:00:13]} 39. Nxa5 {[%emt 0:00:48]} Qxe5 {[%emt 0:00:35]} 40. Nxc6 {[%emt 0:00:01]} Qxe4 {[%emt 0:00:02]} 41. Qxd5 {[%emt 0:00:12]} Qe2 {[%emt 0:01:41]} 42. Nxb8 {[%emt 0:00:14]} Rxb8 {[%emt 0:00:01]} 43. d7 {[%emt 0:00:06]} Rd8 {[%emt 0:00:02]} 44. Qxc5+ {[%emt 0:00:04]} 1-0

[Event "Wuerttemberg Rapid Teams 2024"]
[Site "B?blingen, Germany"]
[Date "2024.04.13"]
[Round "4.27"]
[White "Schraegle, Thorsten"]
[Black "Krockenberger, Martin"]
[Result "1-0"]
[ECO "D00"]
[WhiteElo "1918"]
[BlackElo "2125"]
[Annotator "RC"]
[PlyCount "103"]
[EventDate "2024.04.13"]
[EventType "team-tourn"]
[SourceTitle "playchess.com"]
[Source "ChessBase"]
[SourceQuality "1"]
[TimeControl "900+5"]

1. d4 {[%emt 0:00:03]} Nf6 {[%emt 0:00:01]} 2. Nc3 {[%emt 0:00:03]} d5 {[%emt 0:00:08]} 3. Bf4 {[%emt 0:00:02]} Bf5 {[%emt 0:00:13]} 4. e3 {[%emt 0:00:03]} a6 {[%emt 0:00:14]} 5. Nf3 {[%emt 0:00:03]} e6 {[%emt 0:00:05]} 6. Ne5 {[%emt 0:00:13]} Nbd7 {[%emt 0:01:17]} 7. g4 {[%emt 0:02:03]} Nxe5 {[%emt 0:00:13]} 8. dxe5 {[%emt 0:00:02]} Nxg4 {[%emt 0:00:12]} 9. f3 {[%emt 0:00:01]} Nh6 {[%emt 0:00:33]} 10. Bd3 {[%emt 0:04:41]} Qh4+ {[%emt 0:01:43]} 11. Bg3 {[%emt 0:00:05]} Qb4 {[%emt 0:00:05]} 12. Qc1 {[%emt 0:01:24]} O-O-O {[%emt 0:00:37]} 13. a3 {[%emt 0:00:13]} Qc5 {[%emt 0:00:19]} 14. Bf2 {[%emt 0:00:38]} Qc6 {[%emt 0:00:39]} 15. Qd2 {[%emt 0:00:38]} Bc5 {[%emt 0:00:19]} 16. O-O-O {[%emt 0:00:09]} d4 {[%emt 0:00:42]} 17. exd4 {[%emt 0:01:23]} Bxd4 {[%emt 0:00:04]} 18. Bxd4 {[%emt 0:00:58]} Rxd4 {[%emt 0:00:03]} 19. Qe3 {[%emt 0:00:02]} Rhd8 {[%emt 0:00:09]} 20. Be4 {[%emt 0:00:09]} Rxd1+ {[%emt 0:00:13]} 21. Rxd1 {[%emt 0:00:01]} Rxd1+ {[%emt 0:00:12]} 22. Kxd1 {[%emt 0:00:09]} Bxe4 {[%emt 0:00:34]} 23. Qxe4 {[%emt 0:00:03]} Qxe4 {[%emt 0:00:05]} 24. Nxe4 {[%emt 0:00:02]} Kd7 {[%emt 0:00:13]} 25. Ng5 {[%emt 0:01:10]} Ke7 {[%emt 0:00:39]} 26. Kd2 {[%emt 0:00:28]} f6 {[%emt 0:00:21]} 27. exf6+ {[%emt 0:00:01]} gxf6 {[%emt 0:00:02]} 28. Ne4 {[%emt 0:00:01]} a5 {[%emt 0:00:21]} 29. Kd3 {[%emt 0:00:18]} Nf7 {[%emt 0:00:08]} 30. b3 {[%emt 0:00:43]} f5 {[%emt 0:00:24]} 31. Nc3 {[%emt 0:00:14]} c6 {[%emt 0:00:16]} 32. Na4 {[%emt 0:00:14]} Ne5+ {[%emt 0:00:37]} 33. Ke3 {[%emt 0:00:06]} b5 {[%emt 0:00:14]} 34. Nc5 {[%emt 0:00:09]} Kd6 {[%emt 0:00:05]} 35. Nb7+ {[%emt 0:00:02]} Kd5 {[%emt 0:00:09]} 36. Nxa5 {[%emt 0:00:02]} Nd7 {[%emt 0:00:43]} 37. c4+ {[%emt 0:00:45]} bxc4 {[%emt 0:00:14]} 38. Nxc4 {[%emt 0:00:07]} e5 {[%emt 0:00:10]} 39. f4 {[%emt 0:00:35]} e4 {[%emt 0:00:17]} 40. Kd2 {[%emt 0:00:04]} Nc5 {[%emt 0:00:12]} 41. Ne3+ {[%emt 0:00:01]} Ke6 {[%emt 0:00:08]} 42. Kc3 {[%emt 0:00:01]} Nb7 {[%emt 0:00:09]} 43. Kd4 {[%emt 0:00:11]} Nd6 {[%emt 0:00:51]} 44. Kc5 {[%emt 0:00:01]} Kd7 {[%emt 0:00:01]} 45. a4 {[%emt 0:00:13]} Kc7 {[%emt 0:00:07]} 46. b4 {[%emt 0:00:14]} h5 {[%emt 0:00:00]} 47. Kd4 {[%emt 0:00:01]} Kd7 {[%emt 0:00:27]} 48. Ke5 {[%emt 0:00:01]} h4 {[%emt 0:00:06]} 49. a5 {[%emt 0:00:02]} Kc7 {[%emt 0:00:06]} 50. h3 {[%emt 0:00:01]} Kd7 {[%emt 0:00:09]} 51. a6 {[%emt 0:00:01]} Kc7 {[%emt 0:00:14]} 52. a7 {[%emt 0:00:06]} 1-0

[Event "Wuerttemberg Rapid Teams 2024"]
[Site "B?blingen, Germany"]
[Date "2024.04.13"]
[Round "4.28"]
[White "Eisele, Steffen"]
[Black "Guenter, Alexander"]
[Result "1-0"]
[ECO "C64"]
[WhiteElo "2230"]
[BlackElo "1997"]
[Annotator "RC"]
[PlyCount "107"]
[EventDate "2024.04.13"]
[EventType "team-tourn"]
[SourceTitle "playchess.com"]
[Source "ChessBase"]
[SourceQuality "1"]
[TimeControl "900+5"]

1. e4 {[%emt 0:00:02]} e5 {[%emt 0:00:01]} 2. Nf3 {[%emt 0:00:01]} Nc6 {[%emt 0:00:01]} 3. Bb5 {[%emt 0:00:01]} Bc5 {[%emt 0:00:02]} 4. c3 {[%emt 0:00:06]} a6 {[%emt 0:00:01]} 5. Bxc6 {[%emt 0:01:21]} bxc6 {[%emt 0:00:09]} 6. Nxe5 {[%emt 0:00:39]} Qe7 {[%emt 0:00:02]} 7. d4 {[%emt 0:00:13]} d6 {[%emt 0:00:19]} 8. Nxc6 {[%emt 0:01:11]} Qxe4+ {[%emt 0:00:02]} 9. Qe2 {[%emt 0:00:01]} Qxe2+ {[%emt 0:00:04]} 10. Kxe2 {[%emt 0:00:02]} Bb6 {[%emt 0:00:29]} 11. Re1 {[%emt 0:00:33]} Be6 {[%emt 0:00:56]} 12. Kf1 {[%emt 0:00:06]} Kd7 {[%emt 0:00:29]} 13. Nb4 {[%emt 0:00:40]} Bc4+ {[%emt 0:00:08]} 14. Kg1 {[%emt 0:00:02]} Nf6 {[%emt 0:00:08]} 15. Bg5 {[%emt 0:01:07]} a5 {[%emt 0:00:04]} 16. Nd2 {[%emt 0:00:50]} Be6 {[%emt 0:00:20]} 17. Nd3 {[%emt 0:00:51]} Bf5 {[%emt 0:00:05]} 18. Bxf6 {[%emt 0:01:33]} gxf6 {[%emt 0:00:03]} 19. Ne4 {[%emt 0:00:14]} Kc6 {[%emt 0:00:32]} 20. Nf4 {[%emt 0:00:14]} Bxe4 {[%emt 0:00:14]} 21. Rxe4 {[%emt 0:00:02]} Rae8 {[%emt 0:00:13]} 22. Rae1 {[%emt 0:00:02]} Rxe4 {[%emt 0:00:14]} 23. Rxe4 {[%emt 0:00:01]} Kd7 {[%emt 0:00:30]} 24. Nd5 {[%emt 0:01:21]} f5 {[%emt 0:00:03]} 25. Re7+ {[%emt 0:01:00]} Kc6 {[%emt 0:00:13]} 26. Nxb6 {[%emt 0:00:03]} cxb6 {[%emt 0:00:41]} 27. Rxf7 {[%emt 0:00:03]} Re8 {[%emt 0:00:01]} 28. Kf1 {[%emt 0:00:01]} Kd5 {[%emt 0:00:11]} 29. Rxf5+ {[%emt 0:01:33]} Kc4 {[%emt 0:00:05]} 30. a4 {[%emt 0:00:15]} d5 {[%emt 0:00:20]} 31. Rf6 {[%emt 0:00:33]} Rb8 {[%emt 0:00:01]} 32. Rd6 {[%emt 0:01:31]} Kb3 {[%emt 0:00:07]} 33. Rxd5 {[%emt 0:00:05]} Kxb2 {[%emt 0:00:38]} 34. Rb5+ {[%emt 0:00:35]} Kxc3 {[%emt 0:00:00]} 35. d5 {[%emt 0:00:11]} Kc4 {[%emt 0:00:00]} 36. f4 {[%emt 0:00:10]} Rd8 {[%emt 0:00:00]} 37. Ke2 {[%emt 0:00:10]} Rxd5 {[%emt 0:00:00]} 38. Rxd5 {[%emt 0:00:04]} Kxd5 {[%emt 0:00:03]} 39. Kd3 {[%emt 0:00:01]} Kc5 {[%emt 0:00:01]} 40. Kc3 {[%emt 0:00:02]} b5 {[%emt 0:00:06]} 41. axb5 {[%emt 0:00:02]} Kxb5 {[%emt 0:00:00]} 42. f5 {[%emt 0:00:06]} Kc5 {[%emt 0:00:02]} 43. g4 {[%emt 0:00:04]} a4 {[%emt 0:00:01]} 44. f6 {[%emt 0:00:20]} Kd6 {[%emt 0:00:04]} 45. g5 {[%emt 0:00:01]} Ke6 {[%emt 0:00:01]} 46. Kb4 {[%emt 0:00:06]} Kf7 {[%emt 0:00:03]} 47. Kxa4 {[%emt 0:00:02]} Kg6 {[%emt 0:00:14]} 48. Kb5 {[%emt 0:00:05]} h5 {[%emt 0:00:14]} 49. h4 {[%emt 0:00:04]} Kf7 {[%emt 0:00:10]} 50. Kc6 {[%emt 0:00:01]} Ke6 {[%emt 0:00:02]} 51. Kc7 {[%emt 0:00:03]} Kf5 {[%emt 0:00:04]} 52. f7 {[%emt 0:00:02]} Kg4 {[%emt 0:00:01]} 53. f8=Q Kxh4 54. g6 {[%emt 0:00:12]} 1-0

[Event "Wuerttemberg Rapid Teams 2024"]
[Site "B?blingen, Germany"]
[Date "2024.04.13"]
[Round "4.29"]
[White "Strathmann, Sacha"]
[Black "Braeuning, Rudolf Wilhelm"]
[Result "1/2-1/2"]
[ECO "B06"]
[WhiteElo "2125"]
[BlackElo "2194"]
[Annotator "RC"]
[PlyCount "97"]
[EventDate "2024.04.13"]
[EventType "team-tourn"]
[SourceTitle "playchess.com"]
[Source "ChessBase"]
[SourceQuality "1"]
[TimeControl "900+5"]

1. e4 {[%emt 0:00:02]} c5 {[%emt 0:01:28]} 2. Nf3 {[%emt 0:00:04]} g6 {[%emt 0:00:00]} 3. c3 {[%emt 0:00:03]} d5 {[%emt 0:00:04]} 4. exd5 {[%emt 0:00:08]} Qxd5 {[%emt 0:00:02]} 5. d4 {[%emt 0:00:05]} Bg7 {[%emt 0:00:04]} 6. Be3 {[%emt 0:00:09]} cxd4 {[%emt 0:00:02]} 7. cxd4 {[%emt 0:00:19]} Qa5+ {[%emt 0:00:01]} 8. Nc3 {[%emt 0:00:16]} Nh6 {[%emt 0:00:08]} 9. Bc4 {[%emt 0:01:11]} O-O {[%emt 0:00:06]} 10. O-O {[%emt 0:00:08]} Bg4 {[%emt 0:00:28]} 11. h3 {[%emt 0:00:52]} Bxf3 {[%emt 0:00:02]} 12. Qxf3 {[%emt 0:00:03]} Nc6 {[%emt 0:00:02]} 13. Rfd1 {[%emt 0:01:20]} Nf5 {[%emt 0:00:07]} 14. d5 {[%emt 0:01:05]} Ne5 {[%emt 0:00:27]} 15. Qe2 {[%emt 0:00:02]} Nxe3 {[%emt 0:00:53]} 16. fxe3 {[%emt 0:00:04]} Nxc4 {[%emt 0:01:04]} 17. Qxc4 {[%emt 0:00:02]} Rac8 {[%emt 0:00:05]} 18. Qe4 {[%emt 0:01:14]} Qc5 {[%emt 0:05:48]} 19. Rac1 {[%emt 0:00:35]} a6 {[%emt 0:00:16]} 20. Ne2 {[%emt 0:00:45]} Qd6 {[%emt 0:00:07]} 21. b3 {[%emt 0:00:06]} Rfd8 {[%emt 0:00:51]} 22. Rxc8 {[%emt 0:01:03]} Rxc8 {[%emt 0:00:01]} 23. Qf3 {[%emt 0:00:37]} Qe5 {[%emt 0:01:01]} 24. e4 {[%emt 0:00:50]} Rc2 {[%emt 0:00:27]} 25. Rf1 {[%emt 0:00:47]} Bf6 {[%emt 0:00:17]} 26. a4 {[%emt 0:00:11]} Qb2 {[%emt 0:00:16]} 27. Rf2 {[%emt 0:00:12]} Qa1+ {[%emt 0:00:48]} 28. Rf1 {[%emt 0:00:12]} Qe5 {[%emt 0:00:04]} 29. Qd3 {[%emt 0:00:18]} Rc7 {[%emt 0:00:13]} 30. b4 {[%emt 0:00:23]} Kg7 {[%emt 0:00:02]} 31. b5 {[%emt 0:00:03]} axb5 {[%emt 0:00:06]} 32. axb5 {[%emt 0:00:02]} Rc5 {[%emt 0:00:13]} 33. Rb1 {[%emt 0:00:23]} Qd6 {[%emt 0:00:29]} 34. g3 {[%emt 0:01:36]} Be5 {[%emt 0:00:05]} 35. Kg2 {[%emt 0:00:01]} e6 {[%emt 0:00:15]} 36. Rd1 {[%emt 0:00:21]} b6 {[%emt 0:00:16]} 37. Qb3 {[%emt 0:00:10]} exd5 {[%emt 0:00:00]} 38. Rxd5 {[%emt 0:00:12]} Rxd5 {[%emt 0:00:06]} 39. Qxd5 {[%emt 0:00:04]} Qxd5 {[%emt 0:00:07]} 40. exd5 {[%emt 0:00:03]} f5 {[%emt 0:00:01]} 41. Kf3 {[%emt 0:00:16]} Kf6 {[%emt 0:00:01]} 42. g4 {[%emt 0:01:17]} Ke7 {[%emt 0:00:29]} 43. gxf5 {[%emt 0:00:21]} gxf5 {[%emt 0:00:00]} 44. Ng3 {[%emt 0:00:03]} Kd6 {[%emt 0:01:02]} 45. Nxf5+ {[%emt 0:00:02]} Kxd5 {[%emt 0:00:01]} 46. Ne3+ {[%emt 0:00:14]} Kc5 {[%emt 0:00:04]} 47. Ke4 {[%emt 0:00:02]} Ba1 {[%emt 0:00:20]} 48. Nd5 {[%emt 0:00:01]} Kxb5 {[%emt 0:00:03]} 49. Nxb6 {[%emt 0:00:02]} 1/2-1/2

[Event "Wuerttemberg Rapid Teams 2024"]
[Site "B?blingen, Germany"]
[Date "2024.04.13"]
[Round "4.30"]
[White "Hartmann, Martin"]
[Black "Baur, Frank"]
[Result "1-0"]
[ECO "B30"]
[WhiteElo "2158"]
[BlackElo "2050"]
[Annotator "RC"]
[PlyCount "113"]
[EventDate "2024.04.13"]
[EventType "team-tourn"]
[SourceTitle "playchess.com"]
[Source "ChessBase"]
[SourceQuality "1"]
[TimeControl "900+5"]

1. e4 {[%emt 0:00:11]} c5 {[%emt 0:00:09]} 2. a3 {[%emt 0:00:00]} g6 {[%emt 0:00:03]} 3. Nf3 {[%emt 0:00:00]} Bg7 {[%emt 0:00:34]} 4. Nc3 {[%emt 0:00:55]} Nc6 {[%emt 0:00:35]} 5. Bc4 {[%emt 0:00:02]} a6 {[%emt 0:00:37]} 6. d3 {[%emt 0:00:08]} e6 {[%emt 0:00:13]} 7. O-O {[%emt 0:00:03]} Nge7 {[%emt 0:00:02]} 8. Ba2 {[%emt 0:00:23]} O-O {[%emt 0:00:13]} 9. Bg5 {[%emt 0:00:06]} h6 {[%emt 0:00:46]} 10. Bh4 {[%emt 0:00:02]} b5 {[%emt 0:00:14]} 11. Re1 {[%emt 0:00:11]} Bb7 {[%emt 0:01:32]} 12. Rb1 {[%emt 0:00:12]} d6 {[%emt 0:00:51]} 13. Ne2 {[%emt 0:00:10]} e5 {[%emt 0:00:57]} 14. Qd2 {[%emt 0:00:25]} Kh7 {[%emt 0:00:03]} 15. b4 {[%emt 0:00:38]} Qd7 {[%emt 0:00:41]} 16. Bxe7 {[%emt 0:00:37]} Nxe7 {[%emt 0:01:06]} 17. Ng3 {[%emt 0:00:21]} Rae8 {[%emt 0:02:00]} 18. a4 {[%emt 0:00:24]} f5 {[%emt 0:00:50]} 19. bxc5 {[%emt 0:00:06]} dxc5 {[%emt 0:00:25]} 20. Qe2 {[%emt 0:01:10]} f4 {[%emt 0:00:14]} 21. Nf1 {[%emt 0:00:07]} g5 {[%emt 0:00:17]} 22. h3 {[%emt 0:00:01]} Ng6 {[%emt 0:00:05]} 23. N1h2 {[%emt 0:00:10]} b4 {[%emt 0:01:15]} 24. Bc4 {[%emt 0:00:25]} Qxa4 {[%emt 0:00:40]} 25. Nxg5+ {[%emt 0:00:02]} Kh8 {[%emt 0:00:56]} 26. Qh5 {[%emt 0:00:02]} Qc6 {[%emt 0:00:15]} 27. Bd5 {[%emt 0:00:29]} Qb6 {[%emt 0:00:12]} 28. Ng4 {[%emt 0:00:52]} Ne7 {[%emt 0:01:09]} 29. Nf7+ {[%emt 0:00:33]} Kh7 {[%emt 0:00:20]} 30. Bxb7 {[%emt 0:00:42]} Qxb7 {[%emt 0:00:00]} 31. Ngxh6 {[%emt 0:00:06]} Bxh6 {[%emt 0:00:03]} 32. Qxh6+ {[%emt 0:00:23]} Kg8 {[%emt 0:00:01]} 33. Nd6 {[%emt 0:00:03]} Qc6 {[%emt 0:00:09]} 34. Qg5+ {[%emt 0:00:02]} Kh7 {[%emt 0:00:05]} 35. Nxe8 {[%emt 0:00:03]} Qxe8 {[%emt 0:00:06]} 36. Qxe5 {[%emt 0:00:04]} Ng6 {[%emt 0:00:17]} 37. Qxe8 {[%emt 0:00:02]} Rxe8 {[%emt 0:00:00]} 38. Ra1 {[%emt 0:00:02]} Re6 {[%emt 0:00:09]} 39. Ra5 {[%emt 0:00:02]} Rc6 {[%emt 0:00:04]} 40. Rea1 {[%emt 0:00:02]} c4 {[%emt 0:00:06]} 41. Rxa6 {[%emt 0:00:02]} Rc5 {[%emt 0:00:07]} 42. Rb6 {[%emt 0:00:06]} b3 {[%emt 0:00:07]} 43. d4 {[%emt 0:00:40]} Rc7 {[%emt 0:00:04]} 44. cxb3 {[%emt 0:00:02]} c3 {[%emt 0:00:02]} 45. Rb5 {[%emt 0:00:06]} f3 {[%emt 0:00:01]} 46. Rc5 {[%emt 0:00:15]} Rxc5 {[%emt 0:00:01]} 47. dxc5 {[%emt 0:00:02]} Nf4 {[%emt 0:00:01]} 48. c6 {[%emt 0:00:05]} Ne6 {[%emt 0:00:20]} 49. gxf3 {[%emt 0:00:04]} Kg6 {[%emt 0:00:06]} 50. Rc1 {[%emt 0:00:02]} Nd4 {[%emt 0:00:02]} 51. Kf1 {[%emt 0:00:26]} Nxc6 {[%emt 0:00:02]} 52. Rxc3 {[%emt 0:00:02]} Nd4 {[%emt 0:00:04]} 53. Kg2 {[%emt 0:00:03]} Kf6 {[%emt 0:00:02]} 54. b4 {[%emt 0:00:02]} Ke5 {[%emt 0:00:01]} 55. Rc5+ {[%emt 0:00:09]} Kf4 {[%emt 0:00:03]} 56. Rf5+ {[%emt 0:00:02]} Nxf5 {[%emt 0:00:03]} 57. exf5 {[%emt 0:00:01]} 1-0